bitfinex/quotes_SOLUSD_20220227
["timestamp","ask_amount","ask_price","bid_price","bid_amount"]
[1645966487413,1.49093607,92.209,92.092,108.9]
[1645966487613,1.49093607,92.209,92.091,6.25]
[1645966487614,1.49093607,92.209,92.101,108.9]
[1645966487816,1.49093607,92.209,92.091,2.74678921]
[1645966488012,27.79052234,92.208,92.017,2.77598242]
[1645966488212,16.2943,92.16,92.053,2.74678921]
[1645966488414,1.45771363,92.159,92.053,2.74678921]
[1645966488813,1.45771363,92.159,92.073,147.35290873]
[1645966489416,1.92463769,92.179,92.074,2.99678921]
[1645966489614,1.92463769,92.179,92.074,2.74678921]
[1645966490115,6.0,92.178,92.074,2.74678921]
[1645966490715,16.2921,92.17,92.073,170.91010873]
[1645966490915,1.57256142,92.169,92.073,170.91010873]
[1645966491316,6.0,92.178,92.073,170.91010873]
[1645966491616,6.0,92.178,92.073,170.41010873]
[1645966492014,16.2937,92.16,92.073,170.41010873]
[1645966492217,1.61845146,92.159,92.073,170.41010873]
[1645966493419,16.2982,92.15,92.047,2.74678921]
[1645966493620,54.3247,92.18,91.962,5.54]
[1645966493621,108.9,92.148,91.975,2.46583311]
[1645966493820,78.88923061,92.147,92.025,2.74678921]
[1645966494019,1.50869167,92.146,92.025,2.74678921]
[1645966494421,1.50869167,92.146,92.026,38.68823472]
[1645966494619,1.50869167,92.146,92.028,108.9]
[1645966494823,6.0,92.145,92.03,108.9]
[1645966495022,6.0,92.145,92.032,108.9]
[1645966495424,6.0,92.145,92.033,2.99678921]
[1645966495621,6.0,92.145,92.033,2.74678921]
[1645966495821,6.0,92.145,92.034,2.74678921]
[1645966496524,16.2995,92.14,92.034,2.74678921]
[1645966496722,1.75616352,92.139,92.034,2.74678921]
[1645966497524,1.75616352,92.139,92.032,108.9]
[1645966498424,1.75616352,92.139,92.041,108.9]
[1645966499424,1.75616352,92.139,92.041,115.39]
[1645966499624,1.4740635,92.146,92.041,115.39]
[1645966499824,1.4740635,92.146,92.041,118.13678921]
[1645966501227,6.0,92.145,92.041,118.13678921]
[1645966501930,6.0,92.144,92.043,108.9]
[1645966502129,77.1652,92.147,92.045,108.9]
[1645966502329,6.0,92.146,92.047,108.9]
[1645966502528,6.0,92.145,92.049,108.9]
[1645966502729,6.10266157,92.175,92.05,0.25]
[1645966502930,6.0,92.174,92.05,0.25]
[1645966503129,34.75842407,92.174,92.05,0.25]
[1645966503328,1.59708185,92.173,92.05,0.25]
[1645966503529,16.2941,92.17,92.05,0.25]
[1645966503730,1.82918115,92.169,92.05,0.25]
[1645966503929,1.82918115,92.169,92.045,0.25]
[1645966504330,0.82918115,92.169,92.045,0.25]
[1645966504529,0.82918115,92.169,92.045,2.95325994]
[1645966504730,0.82918115,92.169,92.048,2.84425588]
[1645966504929,2.74678921,92.173,92.051,2.6626873]
[1645966505131,2.74678921,92.173,92.055,108.9]
[1645966505331,2.74678921,92.173,92.061,108.9]
[1645966505533,2.74678921,92.173,92.063,108.9]
[1645966506028,1.77249886,92.169,92.063,108.9]
[1645966506229,4.342,92.168,92.063,108.9]
[1645966506430,4.342,92.168,92.062,47.2493]
[1645966506431,7.08878921,92.168,92.062,47.2493]
[1645966506831,2.74678921,92.167,92.062,47.2493]
[1645966507031,4.342,92.166,92.062,47.2493]
[1645966507432,2.74678921,92.165,92.062,47.2493]
[1645966507633,1.4550931,92.149,92.062,47.2493]
[1645966508434,6.0,92.148,92.062,47.2493]
[1645966508634,8.74678921,92.148,91.962,0.54]
[1645966508834,47.52773767,92.147,91.997,72.41069046]
[1645966509033,1.49454956,92.146,91.997,72.41069046]
[1645966509234,5.85194188,92.145,91.997,72.41069046]
[1645966509433,1.69859989,92.143,91.998,37.30175994]
[1645966509633,1.69859989,92.143,91.999,108.9]
[1645966509834,16.3026,92.12,92.001,108.9]
[1645966510034,106.4960171,92.118,92.002,2.42308219]
[1645966510235,1.4960171,92.118,92.004,108.15]
[1645966510435,1.4960171,92.118,92.006,108.15]
[1645966510640,1.4960171,92.118,92.008,108.15]
[1645966510834,0.25,92.117,92.01,108.15]
[1645966511238,0.25,92.117,92.012,108.15]
[1645966511439,0.25,92.117,92.011,24.1227]
[1645966511635,1.82539265,92.109,92.011,24.1227]
[1645966512437,6.0,92.108,92.011,24.1227]
[1645966512637,6.0,92.108,92.012,108.9]
[1645966514838,1.49606404,92.118,92.012,108.9]
[1645966515241,6.0,92.117,92.012,108.9]
[1645966515539,16.3061,92.1,92.011,24.1227]
[1645966515743,1.76361899,92.099,92.011,24.1227]
[1645966517440,0.25,92.098,92.011,24.1227]
[1645966518244,0.25,92.098,91.998,37.30175994]
[1645966518443,16.3081,92.09,91.998,37.30175994]
[1645966518641,1.82182034,92.089,91.998,37.30175994]
[1645966518842,6.0,92.088,91.998,37.30175994]
[1645966520342,6.0,92.088,91.999,108.9]
[1645966520542,6.0,92.088,92.0,24.5692]
[1645966520742,1.68065062,92.098,92.0,24.5692]
[1645966521347,1.68065062,92.098,92.001,108.9]
[1645966522045,0.25,92.097,92.001,108.9]
[1645966522244,0.25,92.097,92.0,40.8735]
[1645966522645,0.25,92.097,92.001,111.90487961]
[1645966522844,0.25,92.098,92.002,2.56759658]
[1645966523448,2.00042161,92.098,92.001,108.9]
[1645966524045,0.25,92.098,92.002,2.71522721]
[1645966524244,0.25,92.112,92.002,2.71522721]
[1645966524445,0.25,92.112,92.003,0.25]
[1645966524645,6.25,92.112,92.003,0.25]
[1645966524844,6.25,92.112,92.001,108.9]
[1645966525247,6.25,92.112,92.002,3.24991866]
[1645966525647,6.0,92.112,92.003,2.74678921]
[1645966525851,6.0,92.111,92.005,108.9]
[1645966526049,22.5159,92.119,92.008,2.61829139]
[1645966526248,6.0,92.113,92.01,108.9]
[1645966526449,6.0,92.113,92.011,3.15778312]
[1645966526650,6.0,92.113,92.012,108.9]
[1645966526849,0.25,92.112,92.013,2.82208156]
[1645966527052,0.25,92.112,92.013,2.57208156]
[1645966527250,0.25,92.112,92.012,108.9]
[1645966528452,16.304,92.11,92.012,108.9]
[1645966528655,1.45056529,92.109,92.012,108.9]
[1645966529053,4.1973545,92.109,92.011,24.2585]
[1645966529254,29.33769659,92.109,92.011,24.2585]
[1645966529455,1.48776702,92.108,92.011,24.2585]
[1645966529655,24.4223,92.107,92.011,24.2585]
[1645966529954,1.60287546,92.106,92.011,24.2585]
[1645966530157,4.34966467,92.106,92.011,24.2585]
[1645966530554,16.3059,92.1,92.011,24.2585]
[1645966530755,1.76282749,92.099,92.011,24.2585]
[1645966532173,6.0,92.098,92.012,108.9]
[1645966532372,6.0,92.097,92.012,108.9]
[1645966532572,24.4223,92.107,92.012,108.9]
[1645966532774,6.0,92.106,92.012,108.9]
[1645966532975,0.25,92.105,92.012,108.9]
[1645966533174,24.4223,92.107,92.012,108.9]
[1645966534374,6.25,92.106,92.012,108.9]
[1645966534775,6.25,92.106,92.012,124.8614]
[1645966535878,8.021739,92.106,92.012,124.8614]
[1645966536375,8.021739,92.106,92.012,15.9614]
[1645966536977,8.021739,92.106,92.013,108.9]
[1645966537476,6.25,92.106,92.014,2.61830632]
[1645966538079,1.82713641,92.099,92.011,24.2585]
[1645966538279,4.345,92.098,92.011,24.2585]
[1645966538479,4.345,92.098,91.997,23.2443]
[1645966538680,2.74678921,92.098,91.997,23.2443]
[1645966538880,58.55498596,92.097,91.997,23.2443]
[1645966539082,1.67430131,92.096,91.997,23.2443]
[1645966539284,113.245,92.095,91.98,16.3072]
[1645966539483,1.81246564,92.079,91.961,108.9]
[1645966539682,1.55268082,92.094,91.962,23.4177]
[1645966539882,2.74678921,92.078,91.962,23.4177]
[1645966540284,4.346,92.077,91.963,111.64678921]
[1645966540483,16.3078,92.09,91.965,108.9]
[1645966540683,1.65306042,92.089,91.967,108.9]
[1645966540883,1.65306042,92.089,91.969,108.9]
[1645966541086,1.65306042,92.089,91.972,2.71152101]
[1645966541285,1.65306042,92.089,91.974,108.9]
[1645966541584,1.65306042,92.089,91.975,3.31264538]
[1645966541785,1.65306042,92.089,91.976,108.9]
[1645966541983,6.25,92.088,91.977,3.30057075]
[1645966542183,6.25,92.088,91.978,108.9]
[1645966542384,6.25,92.088,91.981,108.9]
[1645966542583,6.25,92.088,91.982,2.78544652]
[1645966543186,6.25,92.088,91.985,2.49619006]
[1645966543584,4.346,92.115,91.985,2.49619006]
[1645966543585,4.346,92.104,91.987,108.9]
[1645966543783,4.346,92.104,91.986,33.88963097]
[1645966543784,2.74678921,92.118,91.99,2.62225649]
[1645966543983,24.30713155,92.131,91.994,108.9]
[1645966544184,24.30713155,92.131,91.997,2.41147125]
[1645966544386,24.30713155,92.131,91.999,108.9]
[1645966544684,24.30713155,92.131,92.002,2.51840192]
[1645966544884,24.30713155,92.131,92.005,2.32844599]
[1645966545085,22.9427,92.131,92.008,2.95939922]
[1645966545284,1.42973518,92.113,92.009,0.25]
[1645966545484,1.42973518,92.113,92.01,108.9]
[1645966545783,6.0,92.112,92.012,108.9]
[1645966545985,6.0,92.112,92.014,108.9]
[1645966546184,0.25,92.111,92.015,0.25]
[1645966546385,0.25,92.111,92.016,108.9]
[1645966546585,0.25,92.111,92.017,0.25]
[1645966546785,1.79068023,92.111,92.017,0.25]
[1645966546989,1.79068023,92.111,92.018,108.9]
[1645966547185,1.79068023,92.111,92.019,0.25]
[1645966547386,1.79068023,92.111,92.018,108.9]
[1645966547987,1.79068023,92.111,92.017,15.97996866]
[1645966548188,2.74678921,92.11,92.013,22.7145]
[1645966548389,7.09078921,92.11,92.013,22.7145]
[1645966548789,2.74678921,92.109,92.013,22.7145]
[1645966549089,4.344,92.108,92.013,22.7145]
[1645966549291,2.74678921,92.109,92.013,22.7145]
[1645966549690,4.344,92.108,92.013,22.7145]
[1645966549892,1.54068023,92.111,92.013,22.7145]
[1645966550495,16.304,92.11,92.013,22.7145]
[1645966550693,4.344,92.109,92.013,22.7145]
[1645966550894,6.25,92.108,92.013,22.7145]
[1645966551096,6.04748741,92.107,92.013,22.7145]
[1645966551897,1.70348741,92.107,92.013,22.7145]
[1645966552100,4.344,92.106,92.013,22.7145]
[1645966552299,1.70348741,92.107,92.013,22.7145]
[1645966552497,16.3061,92.1,92.013,22.7145]
[1645966552700,1.52566217,92.099,92.013,22.7145]
[1645966552896,1.52566217,92.099,91.977,32.47081528]
[1645966552897,1.52566217,92.099,91.98,16.3072]
[1645966553097,1.52566217,92.099,91.982,23.4109]
[1645966553296,4.345,92.098,91.982,23.4109]
[1645966553698,24.7044,92.097,91.982,23.4109]
[1645966553899,5.76307243,92.096,91.982,23.4109]
[1645966554502,16.3093,92.08,91.982,23.4109]
[1645966554704,1.74419706,92.079,91.982,23.4109]
[1645966555102,1.53656531,92.095,91.982,23.4109]
[1645966555301,4.346,92.094,91.983,19.51508969]
[1645966555502,115.99278921,92.094,91.983,19.51508969]
[1645966555707,25.17572571,92.093,91.982,23.4109]
[1645966555906,5.7408108,92.092,91.983,45.4355581]
[1645966556106,5.7408108,92.092,91.983,64.95265638]
[1645966556507,16.3109,92.07,91.984,19.51709828]
[1645966556706,25.40564101,92.069,91.984,19.51709828]
[1645966556912,2.1036035,92.068,91.983,45.4355581]
[1645966558532,2.1036035,92.068,91.982,23.4109]
[1645966558830,2.74678921,92.067,91.982,23.4109]
[1645966559033,1.8536035,92.068,91.982,23.4109]
[1645966559432,1.8536035,92.068,91.983,35.37813332]
[1645966559834,16.313,92.06,91.982,23.4109]
[1645966560031,7.36029128,92.059,91.982,23.4109]
[1645966560438,10.10708049,92.059,91.982,23.4109]
[1645966560632,0.25,92.058,91.982,23.4109]
[1645966560933,109.15,92.058,91.95,26.49508666]
[1645966561135,108.9,92.056,91.951,23.3398]
[1645966561336,1.7182733,92.055,91.951,23.3398]
[1645966561533,108.9,92.054,91.954,19.54531739]
[1645966561732,108.9,92.049,91.954,19.54531739]
[1645966561934,1.48623331,92.048,91.931,55.27268974]
[1645966562133,113.248,92.047,91.931,55.27268974]
[1645966562337,16.3235,92.0,91.932,19.58860227]
[1645966562535,1.76635284,91.999,91.932,19.58860227]
[1645966562736,1.76635284,91.999,91.906,24.9061]
[1645966563033,1.55290106,92.016,91.907,19.60748249]
[1645966563236,4.349,92.015,91.908,38.44384663]
[1645966563638,1.55290106,92.016,91.908,38.44384663]
[1645966563834,108.9,92.017,91.908,38.44384663]
[1645966563835,1.56585109,91.989,91.909,19.60748249]
[1645966564236,6.11835639,92.017,91.91,5.26063445]
[1645966564537,1.76835639,92.017,91.91,2.74678921]
[1645966564736,1.76835639,92.017,91.911,19.60748249]
[1645966564938,4.349,92.016,91.911,19.60748249]
[1645966565236,4.349,92.016,91.913,108.9]
[1645966565436,1.76835639,92.017,91.912,19.60748249]
[1645966565636,1.76835639,92.017,91.908,38.44384663]
[1645966565637,1.76835639,92.017,91.914,19.60748249]
[1645966566037,4.349,92.016,91.915,19.60748249]
[1645966566437,4.349,92.016,91.916,19.60748249]
[1645966566636,1.45093721,91.999,91.916,19.60748249]
[1645966566837,6.25,91.998,91.908,38.44384663]
[1645966567038,30.0874,91.998,91.908,38.44384663]
[1645966567237,1.40591586,91.997,91.908,38.44384663]
[1645966568037,1.71587092,91.989,91.908,38.44384663]
[1645966568438,1.71587092,91.989,91.884,26.50653464]
[1645966568638,108.9,91.979,91.884,26.50653464]
[1645966568838,28.25976282,91.978,91.878,16.1968]
[1645966569039,1.66859598,91.977,91.878,16.1968]
[1645966569441,1.66859598,91.977,91.88,38.95275433]
[1645966569841,22.5033,91.978,91.88,41.53749947]
[1645966570243,22.5033,91.978,91.88,150.43749947]
[1645966570641,22.5033,91.978,91.881,0.25]
[1645966571042,7.09778921,92.004,91.881,0.25]
[1645966571043,6.0,91.977,91.883,108.9]
[1645966571245,1.8420259,92.013,91.885,108.9]
[1645966571445,1.8420259,92.013,91.887,108.9]
[1645966571642,76.1754,92.022,91.891,108.9]
[1645966571845,28.34281751,92.038,91.905,108.9]
[1645966572042,1.69831895,92.043,91.907,108.9]
[1645966572343,1.69831895,92.043,91.91,2.81616761]
[1645966572543,1.46184302,92.041,91.911,0.25]
[1645966572748,1.46184302,92.041,91.912,108.9]
[1645966572942,16.3176,92.03,91.92,16.3167]
[1645966573144,1.76701356,92.029,91.92,16.3167]
[1645966573345,1.76701356,92.029,91.92,125.2167]
[1645966573543,1.54794355,92.04,91.92,125.2167]
[1645966573743,1.54794355,92.04,91.921,24.3227]
[1645966573943,2.74678921,92.028,91.921,24.3227]
[1645966574746,4.349,92.027,91.921,24.3227]
[1645966574947,1.5437702,92.024,91.921,24.3227]
[1645966575350,1.42780072,92.022,91.921,24.3227]
[1645966575746,2.74678921,92.021,91.921,24.3227]
[1645966575947,16.3211,92.01,91.921,24.3227]
[1645966576149,1.52433468,92.008,91.921,24.3227]
[1645966576449,108.9,92.006,91.913,24.048]
[1645966576649,1.59563105,92.005,91.913,24.048]
[1645966576847,4.34242026,92.005,91.913,24.048]
[1645966577052,16.3246,91.99,91.913,24.048]
[1645966577251,1.4891977,91.989,91.913,24.048]
[1645966577449,0.25,91.988,91.913,24.048]
[1645966578649,16.3263,91.98,91.913,24.048]
[1645966580563,1.64475242,91.979,91.883,2.81739856]
[1645966580753,0.25,91.988,91.891,108.9]
[1645966580953,24.5578,91.998,91.893,108.9]
[1645966581154,24.5578,91.998,91.894,2.7804673]
[1645966581755,24.5578,91.998,91.894,2.5304673]
[1645966581956,27.30458921,91.998,91.894,2.5304673]
[1645966582155,6.0,91.997,91.894,2.5304673]
[1645966582357,7.65648646,91.997,91.893,2.49906069]
[1645966582555,7.65648646,91.997,91.9,16.3213]
[1645966582757,7.65648646,91.997,91.893,2.49906069]
[1645966582960,1.70716974,91.989,91.892,24.108]
[1645966583158,2.99678921,91.996,91.892,24.108]
[1645966583359,2.74678921,91.988,91.892,24.108]
[1645966584158,1.4881484,91.993,91.893,111.62208075]
[1645966584360,24.7092,91.994,91.894,2.40193451]
[1645966584560,2.74678921,91.993,91.894,2.40193451]
[1645966585161,16.3264,91.98,91.892,24.108]
[1645966585361,1.36218797,91.978,91.892,24.108]
[1645966585761,6.0,91.977,91.892,24.108]
[1645966585962,7.56635988,91.977,91.892,24.108]
[1645966586163,137.24281751,91.976,91.85,16.3304]
[1645966586364,1.78916693,91.975,91.85,16.3304]
[1645966586563,113.251,91.974,91.851,19.49411825]
[1645966586764,1.36115318,91.973,91.851,19.49411825]
[1645966586965,1.65301316,91.972,91.851,19.49411825]
[1645966587166,1.65301316,91.972,91.852,33.71502109]
[1645966587364,28.34281751,91.971,91.852,33.71502109]
[1645966587564,16.3333,91.94,91.852,33.71502109]
[1645966587764,23.8387,91.939,91.852,33.71502109]
[1645966587965,23.8387,91.939,91.853,2.61017879]
[1645966588366,0.25,91.938,91.853,2.61017879]
[1645966589666,1.8921438,91.938,91.852,33.71502109]
[1645966589869,1.8921438,91.938,91.844,48.0945]
[1645966590870,6.0,91.937,91.845,38.13311896]
[1645966591668,6.0,91.937,91.846,111.30189725]
[1645966591883,6.0,91.936,91.846,108.9]
[1645966592083,23.8387,91.939,91.847,3.08726881]
[1645966592285,6.0,91.938,91.848,0.25]
[1645966592884,0.25,91.937,91.848,0.25]
[1645966593486,0.25,91.937,91.851,2.38738309]
[1645966594586,0.25,91.937,91.845,38.13311896]
[1645966595691,0.25,91.937,91.846,2.68447816]
[1645966596088,0.25,91.937,91.846,111.58447816]
[1645966596289,0.25,91.937,91.846,2.68447816]
[1645966596988,23.8387,91.939,91.846,2.68447816]
[1645966597395,1.57929298,91.929,91.845,38.13311896]
[1645966597789,2.74678921,91.936,91.844,48.0945]
[1645966597989,2.74678921,91.928,91.844,48.0945]
[1645966598788,0.25,91.927,91.844,83.98353033]
[1645966599190,2.74678921,91.926,91.844,83.98353033]
[1645966599590,16.3373,91.92,91.844,83.98353033]
[1645966599791,1.85190555,91.919,91.844,83.98353033]
[1645966601593,23.1535,91.925,91.844,83.98353033]
[1645966601791,23.1535,91.925,91.845,0.25]
[1645966603191,1.69228924,91.939,91.845,0.25]
[1645966603192,1.81807258,91.952,91.845,109.15]
[1645966603393,1.81807258,91.952,91.847,108.9]
[1645966603593,1.81807258,91.952,91.848,2.91536104]
[1645966603894,1.81807258,91.952,91.85,108.9]
[1645966604092,6.0,91.951,91.851,2.92199208]
[1645966604493,16.5818,91.95,91.851,2.74678921]
[1645966604693,1.45441906,91.948,91.83,23.0542]
[1645966604894,2.74678921,91.949,91.845,0.25]
[1645966605095,7.09878921,91.949,91.845,0.25]
[1645966605495,16.3335,91.94,91.845,0.25]
[1645966605695,1.51114353,91.939,91.845,0.25]
[1645966605895,24.88554353,91.939,91.845,0.25]
[1645966606095,110.31743071,91.938,91.845,0.25]
[1645966606296,1.49785756,91.937,91.827,23.5841]
[1645966606696,4.24464677,91.937,91.827,23.5841]
[1645966606895,16.3353,91.93,91.827,23.5841]
[1645966607296,1.52648433,91.929,91.828,43.15129983]
[1645966607499,23.6628,91.928,91.828,43.15129983]
[1645966607698,7.44614724,91.927,91.828,43.15129983]
[1645966607898,0.25,91.926,91.828,43.15129983]
[1645966608499,16.3376,91.92,91.828,43.15129983]
[1645966608699,1.83862504,91.919,91.828,43.15129983]
[1645966609300,1.83862504,91.919,91.829,19.53140773]
[1645966609703,1.83862504,91.919,91.828,43.15129983]
[1645966612106,1.37146894,91.909,91.828,43.15129983]
[1645966612406,1.37146894,91.909,91.827,23.5841]
[1645966612605,23.7924,91.926,91.827,23.5841]
[1645966612606,2.74678921,91.908,91.827,23.5841]
[1645966614407,2.74678921,91.908,74.83,0.71941414]
[1645966614408,108.9,91.899,91.79,112.2]
[1645966614608,1.59379456,91.896,91.79,112.2]
[1645966614812,4.605,91.895,91.791,6.0]
[1645966615009,7.35178921,91.895,91.791,19.62940022]
[1645966615210,1.75455339,91.893,91.793,37.70833114]
[1645966615409,4.355,91.892,91.793,37.70833114]
[1645966615616,1.49635005,91.879,91.793,37.70833114]
[1645966615810,1.76987482,91.877,91.793,37.70833114]
[1645966617013,1.76987482,91.877,91.794,19.63701983]
[1645966617418,4.51666403,91.877,91.794,19.63701983]
[1645966617612,16.347,91.87,91.794,19.63701983]
[1645966617815,1.36643166,91.869,91.793,37.70833114]
[1645966618033,4.11322087,91.869,91.793,37.70833114]
[1645966618212,2.74678921,91.869,91.793,37.70833114]
[1645966618414,2.74678921,91.868,91.793,37.70833114]
[1645966618613,2.74678921,91.868,91.794,19.67626993]
[1645966618813,6.0,91.867,91.794,19.67626993]
[1645966619012,16.3475,91.86,91.794,19.67626993]
[1645966619214,6.0,91.859,91.794,19.67626993]
[1645966619416,6.0,91.859,91.793,37.70833114]
[1645966620314,7.71498067,91.859,91.793,37.70833114]
[1645966621413,16.3493,91.85,91.771,48.7743]
[1645966621614,16.3493,91.85,91.752,26.59709158]
[1645966621615,1.83817535,91.849,91.752,26.59709158]
[1645966621814,27.18506456,91.849,91.752,26.59709158]
[1645966622016,1.35429903,91.848,91.731,22.5805]
[1645966622214,4.10108824,91.848,91.731,22.5805]
[1645966622415,23.6658,91.847,91.752,18.4862893]
[1645966622616,16.3535,91.84,91.753,24.0498]
[1645966622815,2.00427465,91.839,91.753,24.0498]
[1645966623016,6.0,91.838,91.753,24.0498]
[1645966623219,1.64914341,91.837,91.753,24.0498]
[1645966623918,29.9911,91.838,91.753,24.0498]
[1645966624321,29.9911,91.838,91.754,18.48115891]
[1645966624520,16.3544,91.83,91.754,18.48115891]
[1645966624919,16.3544,91.83,91.753,24.0498]
[1645966626518,0.25,91.829,91.753,24.0498]
[1645966626718,1.74082374,91.829,91.753,24.0498]
[1645966626918,1.74082374,91.829,91.732,44.10657545]
[1645966627120,2.74678921,91.828,91.732,44.10657545]
[1645966627318,1.74082374,91.829,91.733,21.44759461]
[1645966627521,1.49082374,91.829,91.734,6.0]
[1645966627719,1.49082374,91.829,91.735,24.5004]
[1645966627923,1.46059426,91.846,91.74,108.9]
[1645966628121,26.64238921,91.863,91.743,2.58951301]
[1645966628321,26.64238921,91.863,91.736,44.69679379]
[1645966628322,1.57045375,91.862,91.746,3.11700656]
[1645966628520,1.57045375,91.862,91.748,108.9]
[1645966628720,1.57045375,91.862,91.75,108.9]
[1645966628921,1.57045375,91.862,91.752,108.9]
[1645966629122,1.57045375,91.862,91.754,108.9]
[1645966629321,1.57045375,91.862,91.756,108.9]
[1645966629521,0.25,91.861,91.76,16.347]
[1645966629823,6.25,91.861,91.762,2.43526356]
[1645966630021,0.25,91.861,91.763,0.25]
[1645966630227,6.25,91.861,91.763,24.8551]
[1645966630422,6.25,91.861,91.763,39.05296165]
[1645966630622,6.25,91.861,91.764,14.19786165]
[1645966630821,6.25,91.861,91.765,0.25]
[1645966631023,2.74678921,91.86,91.764,14.19786165]
[1645966631222,19.09428921,91.86,91.764,14.19786165]
[1645966631427,1.65645441,91.859,91.764,14.19786165]
[1645966631923,1.65645441,91.859,91.765,2.99678921]
[1645966632122,1.65645441,91.859,91.77,16.3451]
[1645966632329,1.65645441,91.859,91.771,0.25]
[1645966632524,1.65645441,91.859,91.771,14.44786165]
[1645966632923,1.65645441,91.859,91.772,14.19786165]
[1645966633324,6.0,91.858,91.772,14.19786165]
[1645966633727,16.3456,91.87,91.772,14.19786165]
[1645966633925,6.0,91.869,91.772,14.19786165]
[1645966634328,6.0,91.869,91.773,0.25]
[1645966634728,6.0,91.869,91.774,14.19786165]
[1645966634931,16.3456,91.87,91.78,16.3435]
[1645966635329,16.3456,91.87,91.78,125.2435]
[1645966635532,24.3101,91.889,91.782,108.9]
[1645966635731,24.3101,91.889,91.784,108.9]
[1645966635930,24.3101,91.889,91.801,108.9]
[1645966636131,6.0,91.888,91.802,67.33334135]
[1645966636431,6.0,91.887,91.803,112.0309311]
[1645966636733,22.9338,91.906,91.804,2.49417545]
[1645966637033,6.0,91.89,91.805,0.25]
[1645966637231,1.87482308,91.904,91.802,64.82631131]
[1645966637433,6.0,91.903,91.802,64.82631131]
[1645966637631,1.5221521,91.901,91.802,64.82631131]
[1645966638234,28.75781025,91.9,91.802,24.3913]
[1645966638534,1.69230962,91.889,91.802,24.3913]
[1645966638734,1.63631104,91.886,91.802,24.3913]
[1645966638934,1.63631104,91.886,91.783,24.6765]
[1645966639134,108.9,91.884,91.743,4.355]
[1645966639333,108.9,91.882,91.758,40.82103515]
[1645966639533,6.03119661,91.883,91.758,40.82103515]
[1645966639534,108.9,91.88,91.758,40.82103515]
[1645966639734,1.83754194,91.879,91.758,40.82103515]
[1645966639938,4.356,91.878,91.758,40.82103515]
[1645966640134,108.9,91.877,91.758,40.82103515]
[1645966640334,108.9,91.875,91.758,40.82103515]
[1645966640545,5.96078007,91.876,91.759,49.0016]
[1645966640546,108.9,91.869,91.759,49.0016]
[1645966640747,1.45611884,91.868,91.759,49.0016]
[1645966640946,4.356,91.867,91.759,49.0016]
[1645966641149,113.256,91.867,91.759,49.0016]
[1645966641350,108.9,91.865,91.759,49.0016]
[1645966641547,108.9,91.863,91.759,49.0016]
[1645966641749,108.9,91.861,91.759,49.0016]
[1645966641949,108.9,91.859,91.759,49.0016]
[1645966642147,16.3543,91.85,91.759,49.0016]
[1645966642349,1.80639189,91.848,91.759,49.0016]
[1645966642550,4.357,91.847,91.759,49.0016]
[1645966642747,6.11586128,91.847,91.759,49.0016]
[1645966642948,1.43376481,91.845,91.759,49.0016]
[1645966643849,16.3543,91.84,91.759,49.0016]
[1645966646753,2.74678921,91.857,91.759,49.0016]
[1645966646953,23.5205,91.871,91.76,21.4291955]
[1645966647153,23.5205,91.871,91.761,2.31659831]
[1645966647353,23.5205,91.871,91.762,0.25]
[1645966647555,23.5205,91.871,91.762,24.27245139]
[1645966647756,23.5205,91.871,91.763,2.89956981]
[1645966648053,23.5205,91.871,91.764,9.01778159]
[1645966648255,6.0,91.87,91.765,2.67779949]
[1645966648457,7.73894014,91.87,91.78,16.3434]
[1645966648653,7.73894014,91.87,91.781,30.0846]
[1645966648853,7.73894014,91.87,91.781,24.0846]
[1645966649255,6.0,91.87,91.781,24.0846]
[1645966649454,7.72858282,91.87,91.781,24.0846]
[1645966649655,24.07468282,91.87,91.781,24.0846]
[1645966649856,1.80023177,91.869,91.781,24.0846]
[1645966650057,4.356,91.868,91.781,24.0846]